[Event "Titled Tuesday Blitz July 18 Late 2023"]
[White "Rios Escobar, Adan"]
[Black "Alain_Otero"]
[WhiteFideId "3403645"]
[WhiteElo "2423"]
[BlackElo "2345"]
[Result "1-0"]
[Round "8"]
[TimeControl "180+2"]
[Date "2023.07.18"]
[WhiteClock "0:00:22"]
[BlackClock "0:00:00"]
[Board "103"]

1. d4 {[%clk 0:02:53]}  d5 {[%clk 0:02:59]} 2. g3 {[%clk 0:02:53]}  Nf6 {[%clk 0:02:58]} 3. Nf3 {[%clk 0:02:52]}  e6 {[%clk 0:02:55]} 4. c4 {[%clk 0:02:52]}  dxc4 {[%clk 0:02:52]} 5. Bg2 {[%clk 0:02:51]}  a6 {[%clk 0:02:48]} 6. O-O {[%clk 0:02:51]}  Nc6 {[%clk 0:02:42]} 7. e3 {[%clk 0:02:34]}  Rb8 {[%clk 0:02:38]} 8. Qc2 {[%clk 0:02:23]}  b5 {[%clk 0:02:35]} 9. b3 {[%clk 0:02:18]}  Nb4 {[%clk 0:02:33]} 10. Qd2 {[%clk 0:02:05]}  cxb3 {[%clk 0:02:11]} 11. axb3 {[%clk 0:02:03]}  Ne4 {[%clk 0:02:09]} 12. Qe2 {[%clk 0:02:03]}  Bb7 {[%clk 0:02:07]} 13. Bb2 {[%clk 0:02:01]}  Be7 {[%clk 0:02:01]} 14. Rc1 {[%clk 0:01:59]}  O-O {[%clk 0:01:58]} 15. Ne5 {[%clk 0:01:56]}  Rc8 {[%clk 0:01:36]} 16. Na3 {[%clk 0:01:39]}  c5 {[%clk 0:01:29]} 17. dxc5 {[%clk 0:01:36]}  Bxc5 {[%clk 0:01:15]} 18. Rd1 {[%clk 0:01:20]}  Bd6 {[%clk 0:00:57]} 19. Rxd6 {[%clk 0:00:44]}  Qxd6 {[%clk 0:00:55]} 20. Rd1 {[%clk 0:00:43]}  Qc7 {[%clk 0:00:15]} 21. Nd7 {[%clk 0:00:43]}  Rfd8 {[%clk 0:00:10]} 22. Qg4 {[%clk 0:00:43]}  g6 {[%clk 0:00:03]} 23. Bxe4 {[%clk 0:00:28]}  Rxd7 {[%clk 0:00:02]} 24. Rxd7 {[%clk 0:00:24]}  Qxd7 {[%clk 0:00:02]} 25. Bxb7 {[%clk 0:00:23]}  Qxb7 {[%clk 0:00:02]} 26. Qxb4 {[%clk 0:00:23]}  a5 {[%clk 0:00:00]} 27. Qd4 {[%clk 0:00:22]} 1-0


[Site "https://www.chess.com"]

[Event "Titled Tuesday Blitz July 18 Late 2023"]
[White "Calin, Alexandru"]
[Black "Ai, Evan"]
[WhiteFideId "1222961"]
[BlackFideId "2094770"]
[WhiteElo "2342"]
[BlackElo "2420"]
[Result "1-0"]
[Round "8"]
[TimeControl "180+2"]
[Date "2023.07.18"]
[WhiteClock "0:00:31"]
[BlackClock "0:00:07"]
[Board "104"]

1. d4 {[%clk 0:02:59]}  Nf6 {[%clk 0:02:59]} 2. Bg5 {[%clk 0:02:57]}  d5 {[%clk 0:02:58]} 3. Bxf6 {[%clk 0:02:57]}  exf6 {[%clk 0:02:58]} 4. g3 {[%clk 0:02:56]}  c6 {[%clk 0:02:59]} 5. Bg2 {[%clk 0:02:57]}  Bd6 {[%clk 0:02:59]} 6. e3 {[%clk 0:02:57]}  O-O {[%clk 0:02:59]} 7. Ne2 {[%clk 0:02:58]}  Re8 {[%clk 0:02:58]} 8. O-O {[%clk 0:02:59]}  Nd7 {[%clk 0:02:56]} 9. b3 {[%clk 0:03:00]}  a5 {[%clk 0:02:55]} 10. c4 {[%clk 0:03:00]}  dxc4 {[%clk 0:02:53]} 11. bxc4 {[%clk 0:03:01]}  f5 {[%clk 0:02:46]} 12. Nbc3 {[%clk 0:03:01]}  Nf6 {[%clk 0:02:45]} 13. Rb1 {[%clk 0:03:02]}  Ne4 {[%clk 0:02:44]} 14. Qc2 {[%clk 0:02:57]}  Qe7 {[%clk 0:02:40]} 15. Na4 {[%clk 0:02:52]}  Bd7 {[%clk 0:02:34]} 16. Rxb7 {[%clk 0:02:49]}  Reb8 {[%clk 0:02:32]} 17. Rfb1 {[%clk 0:02:46]}  Rxb7 {[%clk 0:02:25]} 18. Rxb7 {[%clk 0:02:47]}  Rb8 {[%clk 0:02:26]} 19. Rxb8+ {[%clk 0:02:47]}  Bxb8 {[%clk 0:02:27]} 20. Nec3 {[%clk 0:02:43]}  Nxc3 {[%clk 0:02:17]} 21. Nxc3 {[%clk 0:02:44]}  Bd6 {[%clk 0:02:13]} 22. c5 {[%clk 0:02:41]}  Bc7 {[%clk 0:02:08]} 23. Qb3 {[%clk 0:02:36]}  f4 {[%clk 0:01:31]} 24. Qb7 {[%clk 0:02:14]}  Be8 {[%clk 0:01:17]} 25. e4 {[%clk 0:01:57]}  fxg3 {[%clk 0:00:59]} 26. hxg3 {[%clk 0:01:58]}  Qd7 {[%clk 0:00:54]} 27. d5 {[%clk 0:01:56]}  Be5 {[%clk 0:00:53]} 28. Qxd7 {[%clk 0:01:48]}  Bxd7 {[%clk 0:00:54]} 29. Ne2 {[%clk 0:01:43]}  Kf8 {[%clk 0:00:47]} 30. f4 {[%clk 0:01:40]}  Bb2 {[%clk 0:00:46]} 31. e5 {[%clk 0:01:36]}  Ba3 {[%clk 0:00:42]} 32. dxc6 {[%clk 0:01:31]}  Bxc5+ {[%clk 0:00:42]} 33. Kf1 {[%clk 0:01:31]}  Be6 {[%clk 0:00:43]} 34. Nc3 {[%clk 0:01:23]}  Bc4+ {[%clk 0:00:37]} 35. Ke1 {[%clk 0:01:21]}  Bb4 {[%clk 0:00:34]} 36. Kd2 {[%clk 0:01:21]}  Bxa2 {[%clk 0:00:34]} 37. c7 {[%clk 0:01:18]}  Be6 {[%clk 0:00:33]} 38. Bb7 {[%clk 0:01:19]}  f6 {[%clk 0:00:27]} 39. exf6 {[%clk 0:01:16]}  gxf6 {[%clk 0:00:28]} 40. c8=Q+ {[%clk 0:01:15]}  Bxc8 {[%clk 0:00:27]} 41. Bxc8 {[%clk 0:01:16]}  Kg7 {[%clk 0:00:28]} 42. Kd3 {[%clk 0:01:15]}  Kg6 {[%clk 0:00:25]} 43. Ne4 {[%clk 0:01:03]}  h5 {[%clk 0:00:24]} 44. Bd7 {[%clk 0:00:51]}  Be7 {[%clk 0:00:20]} 45. Be8+ {[%clk 0:00:50]}  Kh6 {[%clk 0:00:19]} 46. f5 {[%clk 0:00:48]}  Bd8 {[%clk 0:00:18]} 47. Kc4 {[%clk 0:00:41]}  Bb6 {[%clk 0:00:14]} 48. Kb5 {[%clk 0:00:41]}  Bd8 {[%clk 0:00:14]} 49. Ka4 {[%clk 0:00:42]}  Bb6 {[%clk 0:00:14]} 50. Bg6 {[%clk 0:00:35]}  Bd8 {[%clk 0:00:13]} 51. Kb5 {[%clk 0:00:35]}  Bc7 {[%clk 0:00:10]} 52. Nxf6 {[%clk 0:00:33]}  Bxg3 {[%clk 0:00:09]} 53. Nxh5 {[%clk 0:00:33]}  Be5 {[%clk 0:00:09]} 54. Kxa5 {[%clk 0:00:32]}  Kg5 {[%clk 0:00:09]} 55. Kb5 {[%clk 0:00:32]}  Bf6 {[%clk 0:00:08]} 56. Nxf6 {[%clk 0:00:30]}  Kxf6 {[%clk 0:00:09]} 57. Kc5 {[%clk 0:00:31]}  Ke5 {[%clk 0:00:08]} 58. Kc4 {[%clk 0:00:31]}  Kf6 {[%clk 0:00:07]} 59. Kd5 {[%clk 0:00:31]} 1-0


[Site "https://www.chess.com"]

[Event "Titled Tuesday Blitz July 18 Late 2023"]
[White "Vifleemskaia, Svetlana"]
[Black "Mazurkiewicz, Michal"]
[WhiteFideId "4129490"]
[BlackFideId "1124943"]
[WhiteElo "2334"]
[BlackElo "2415"]
[Result "1-0"]
[Round "8"]
[TimeControl "180+2"]
[Date "2023.07.18"]
[WhiteClock "0:00:02"]
[BlackClock "0:00:00"]
[Board "105"]

1. d4 {[%clk 0:02:56]}  Nf6 {[%clk 0:02:58]} 2. c4 {[%clk 0:02:55]}  e5 {[%clk 0:02:59]} 3. dxe5 {[%clk 0:02:55]}  Ng4 {[%clk 0:02:59]} 4. Bf4 {[%clk 0:02:54]}  Nc6 {[%clk 0:02:55]} 5. Nf3 {[%clk 0:02:53]}  Bb4+ {[%clk 0:02:56]} 6. Nbd2 {[%clk 0:02:50]}  Qe7 {[%clk 0:02:56]} 7. e3 {[%clk 0:02:48]}  Ngxe5 {[%clk 0:02:54]} 8. Nxe5 {[%clk 0:02:45]}  Nxe5 {[%clk 0:02:55]} 9. a3 {[%clk 0:02:45]}  Bc5 {[%clk 0:02:50]} 10. b4 {[%clk 0:02:42]}  Bd4 {[%clk 0:02:49]} 11. Ra2 {[%clk 0:02:32]}  a5 {[%clk 0:02:43]} 12. Be2 {[%clk 0:02:25]}  axb4 {[%clk 0:02:40]} 13. Qb3 {[%clk 0:01:57]}  Bc3 {[%clk 0:02:23]} 14. O-O {[%clk 0:01:20]}  Bxd2 {[%clk 0:02:21]} 15. Rxd2 {[%clk 0:01:20]}  Rxa3 {[%clk 0:02:18]} 16. Qb2 {[%clk 0:01:19]}  Nc6 {[%clk 0:02:15]} 17. Qxg7 {[%clk 0:01:16]}  Qf8 {[%clk 0:02:06]} 18. Qxf8+ {[%clk 0:00:54]}  Rxf8 {[%clk 0:02:03]} 19. Bxc7 {[%clk 0:00:55]}  Rg8 {[%clk 0:02:01]} 20. Rb2 {[%clk 0:00:47]}  Rg5 {[%clk 0:01:46]} 21. Bd6 {[%clk 0:00:42]}  Rga5 {[%clk 0:01:06]} 22. Bxb4 {[%clk 0:00:34]}  Nxb4 {[%clk 0:01:07]} 23. Rxb4 {[%clk 0:00:34]}  d6 {[%clk 0:01:07]} 24. Bf3 {[%clk 0:00:32]}  Ra7 {[%clk 0:01:06]} 25. h3 {[%clk 0:00:26]}  Kd8 {[%clk 0:01:03]} 26. Rfb1 {[%clk 0:00:21]}  Kc7 {[%clk 0:01:03]} 27. Rb5 {[%clk 0:00:17]}  Rc3 {[%clk 0:01:00]} 28. Bd5 {[%clk 0:00:17]}  f6 {[%clk 0:00:54]} 29. g4 {[%clk 0:00:16]}  f5 {[%clk 0:00:53]} 30. gxf5 {[%clk 0:00:13]}  Bxf5 {[%clk 0:00:51]} 31. Rxb7+ {[%clk 0:00:14]}  Rxb7 {[%clk 0:00:51]} 32. Rxb7+ {[%clk 0:00:14]}  Kc8 {[%clk 0:00:51]} 33. Rf7 {[%clk 0:00:13]}  Bg6 {[%clk 0:00:51]} 34. Re7 {[%clk 0:00:11]}  Kd8 {[%clk 0:00:48]} 35. Rg7 {[%clk 0:00:11]}  Ke8 {[%clk 0:00:43]} 36. Kg2 {[%clk 0:00:11]}  Kf8 {[%clk 0:00:43]} 37. Rd7 {[%clk 0:00:10]}  Rd3 {[%clk 0:00:36]} 38. Rxd6 {[%clk 0:00:08]}  Be4+ {[%clk 0:00:36]} 39. Kg3 {[%clk 0:00:08]}  Rd1 {[%clk 0:00:34]} 40. Kf4 {[%clk 0:00:06]}  Bg6 {[%clk 0:00:32]} 41. Rd7 {[%clk 0:00:04]}  Rd2 {[%clk 0:00:30]} 42. f3 {[%clk 0:00:04]}  Rh2 {[%clk 0:00:30]} 43. Kg3 {[%clk 0:00:03]}  Rc2 {[%clk 0:00:28]} 44. Rc7 {[%clk 0:00:02]}  Rc3 {[%clk 0:00:28]} 45. e4 {[%clk 0:00:01]}  Ke8 {[%clk 0:00:25]} 46. Kf4 {[%clk 0:00:01]}  Kd8 {[%clk 0:00:24]} 47. Ra7 {[%clk 0:00:02]}  Bh5 {[%clk 0:00:22]} 48. Ke5 {[%clk 0:00:01]}  Bxf3 {[%clk 0:00:22]} 49. Rxh7 {[%clk 0:00:01]}  Bg2 {[%clk 0:00:20]} 50. Rh8+ {[%clk 0:00:02]}  Kc7 {[%clk 0:00:19]} 51. h4 {[%clk 0:00:03]}  Kb6 {[%clk 0:00:18]} 52. Rh7 {[%clk 0:00:03]}  Kc5 {[%clk 0:00:18]} 53. Rc7+ {[%clk 0:00:03]}  Kb4 {[%clk 0:00:16]} 54. Rb7+ {[%clk 0:00:02]}  Ka5 {[%clk 0:00:16]} 55. Rb5+ {[%clk 0:00:02]}  Ka4 {[%clk 0:00:14]} 56. Kd6 {[%clk 0:00:02]}  Re3 {[%clk 0:00:13]} 57. e5 {[%clk 0:00:01]}  Rd3 {[%clk 0:00:11]} 58. Ke6 {[%clk 0:00:01]}  Bh3+ {[%clk 0:00:10]} 59. Kd6 {[%clk 0:00:01]}  Re3 {[%clk 0:00:09]} 60. e6 {[%clk 0:00:01]}  Rd3 {[%clk 0:00:08]} 61. Rc5 {[%clk 0:00:02]}  Bg2 {[%clk 0:00:07]} 62. e7 {[%clk 0:00:02]}  Kb4 {[%clk 0:00:05]} 63. Rc8 {[%clk 0:00:02]}  Bxd5 {[%clk 0:00:03]} 64. cxd5 {[%clk 0:00:02]}  Re3 {[%clk 0:00:04]} 65. e8=Q {[%clk 0:00:03]}  Re6+ {[%clk 0:00:00]} 66. Kxe6 {[%clk 0:00:02]} 1-0


[Site "https://www.chess.com"]

[Event "Titled Tuesday Blitz July 18 Late 2023"]
[White "Jorajuria Mendoza, Algol"]
[Black "Lopez Idarraga, Daniel Eduardo"]
[WhiteFideId "5128897"]
[BlackFideId "4405501"]
[WhiteElo "2410"]
[BlackElo "2326"]
[Result "0-1"]
[Round "8"]
[TimeControl "180+2"]
[Date "2023.07.18"]
[WhiteClock "0:00:00"]
[BlackClock "0:00:22"]
[Board "106"]

1. e4 {[%clk 0:03:00]}  c6 {[%clk 0:03:00]} 2. d4 {[%clk 0:02:59]}  d5 {[%clk 0:03:01]} 3. e5 {[%clk 0:02:59]}  Bf5 {[%clk 0:03:01]} 4. Nf3 {[%clk 0:02:59]}  e6 {[%clk 0:03:01]} 5. c3 {[%clk 0:02:53]}  Ne7 {[%clk 0:02:58]} 6. Be2 {[%clk 0:02:47]}  Nd7 {[%clk 0:02:57]} 7. a4 {[%clk 0:02:39]}  c5 {[%clk 0:02:57]} 8. dxc5 {[%clk 0:02:37]}  Nxc5 {[%clk 0:02:56]} 9. Nd4 {[%clk 0:02:31]}  Bg6 {[%clk 0:02:55]} 10. Bb5+ {[%clk 0:02:23]}  Nd7 {[%clk 0:02:53]} 11. a5 {[%clk 0:02:21]}  a6 {[%clk 0:02:52]} 12. Ba4 {[%clk 0:02:21]}  Rc8 {[%clk 0:02:51]} 13. Bg5 {[%clk 0:02:11]}  Qc7 {[%clk 0:02:50]} 14. O-O {[%clk 0:01:23]}  Nc6 {[%clk 0:02:43]} 15. Nxc6 {[%clk 0:01:22]}  bxc6 {[%clk 0:02:44]} 16. f4 {[%clk 0:01:22]}  Bc5+ {[%clk 0:02:42]} 17. Kh1 {[%clk 0:01:22]}  O-O {[%clk 0:02:42]} 18. Nd2 {[%clk 0:01:18]}  Rb8 {[%clk 0:02:27]} 19. b4 {[%clk 0:00:57]}  Ba7 {[%clk 0:02:27]} 20. Be7 {[%clk 0:00:57]}  c5 {[%clk 0:01:06]} 21. Bd6 {[%clk 0:00:51]}  Qc8 {[%clk 0:01:03]} 22. Bxb8 {[%clk 0:00:49]}  Nxb8 {[%clk 0:01:00]} 23. Nb3 {[%clk 0:00:43]}  c4 {[%clk 0:00:58]} 24. Nd4 {[%clk 0:00:40]}  Bd3 {[%clk 0:00:59]} 25. Rf3 {[%clk 0:00:36]}  Bxd4 {[%clk 0:00:53]} 26. cxd4 {[%clk 0:00:35]}  Be4 {[%clk 0:00:52]} 27. Rg3 {[%clk 0:00:30]}  Qb7 {[%clk 0:00:52]} 28. Qd2 {[%clk 0:00:25]}  Nc6 {[%clk 0:00:50]} 29. Ra2 {[%clk 0:00:13]}  Nxb4 {[%clk 0:00:45]} 30. Rb2 {[%clk 0:00:14]}  Rb8 {[%clk 0:00:42]} 31. Rc3 {[%clk 0:00:09]}  Qc7 {[%clk 0:00:40]} 32. Qc1 {[%clk 0:00:08]}  Nd3 {[%clk 0:00:37]} 33. Rxb8+ {[%clk 0:00:08]}  Qxb8 {[%clk 0:00:38]} 34. Qf1 {[%clk 0:00:06]}  Qb4 {[%clk 0:00:35]} 35. Qa1 {[%clk 0:00:05]}  Nxf4 {[%clk 0:00:33]} 36. Bc2 {[%clk 0:00:04]}  Bxg2+ {[%clk 0:00:27]} 37. Kg1 {[%clk 0:00:03]}  Ne2+ {[%clk 0:00:27]} 38. Kxg2 {[%clk 0:00:03]}  Qxc3 {[%clk 0:00:26]} 39. Qd1 {[%clk 0:00:00]}  Nf4+ {[%clk 0:00:22]} 0-1


[Site "https://www.chess.com"]

[Event "Titled Tuesday Blitz July 18 Late 2023"]
[White "Korkmaz, Necmettin"]
[Black "cedchass2006"]
[WhiteFideId "6303285"]
[WhiteElo "2466"]
[BlackElo "2407"]
[Result "1-0"]
[Round "8"]
[TimeControl "180+2"]
[Date "2023.07.18"]
[WhiteClock "0:01:54"]
[BlackClock "0:01:39"]
[Board "107"]

1. e4 {[%clk 0:03:00]}  e5 {[%clk 0:02:56]} 2. Nf3 {[%clk 0:03:00]}  Nc6 {[%clk 0:02:56]} 3. d4 {[%clk 0:02:58]}  exd4 {[%clk 0:02:55]} 4. Bc4 {[%clk 0:02:58]}  Bc5 {[%clk 0:02:52]} 5. O-O {[%clk 0:02:56]}  Nf6 {[%clk 0:02:36]} 6. e5 {[%clk 0:02:53]}  d5 {[%clk 0:02:34]} 7. exf6 {[%clk 0:02:53]}  dxc4 {[%clk 0:02:33]} 8. Re1+ {[%clk 0:02:54]}  Be6 {[%clk 0:02:33]} 9. Ng5 {[%clk 0:02:54]}  O-O {[%clk 0:02:25]} 10. Rxe6 {[%clk 0:02:35]}  fxe6 {[%clk 0:02:25]} 11. Qh5 {[%clk 0:02:27]}  Rxf6 {[%clk 0:01:52]} 12. Qxh7+ {[%clk 0:02:22]}  Kf8 {[%clk 0:01:52]} 13. Qh8+ {[%clk 0:02:17]}  Ke7 {[%clk 0:01:52]} 14. Qxg7+ {[%clk 0:02:18]}  Kd6 {[%clk 0:01:52]} 15. Ne4+ {[%clk 0:02:17]}  Ke5 {[%clk 0:01:49]} 16. Nxf6 {[%clk 0:02:00]}  Qxf6 {[%clk 0:01:49]} 17. f4+ {[%clk 0:01:59]}  Kf5 {[%clk 0:01:47]} 18. g4+ {[%clk 0:01:59]}  Ke4 {[%clk 0:01:44]} 19. Qxf6 {[%clk 0:01:59]}  d3+ {[%clk 0:01:44]} 20. Kg2 {[%clk 0:01:59]}  Nd4 {[%clk 0:01:39]} 21. Nc3# {[%clk 0:01:54]} 1-0


[Site "https://www.chess.com"]

[Event "Titled Tuesday Blitz July 18 Late 2023"]
[White "Mikhalsky, Vladimir"]
[Black "Cooper, Aaron"]
[WhiteFideId "14144352"]
[BlackFideId "2634945"]
[WhiteElo "2396"]
[BlackElo "2287"]
[Result "0-1"]
[Round "8"]
[TimeControl "180+2"]
[Date "2023.07.18"]
[WhiteClock "0:00:00"]
[BlackClock "0:00:14"]
[Board "111"]

1. d4 {[%clk 0:02:50]}  Nf6 {[%clk 0:02:59]} 2. c4 {[%clk 0:02:49]}  e6 {[%clk 0:02:59]} 3. g3 {[%clk 0:02:48]}  d5 {[%clk 0:02:59]} 4. Bg2 {[%clk 0:02:46]}  Be7 {[%clk 0:02:59]} 5. Nf3 {[%clk 0:02:44]}  O-O {[%clk 0:02:59]} 6. O-O {[%clk 0:02:44]}  dxc4 {[%clk 0:02:56]} 7. Qc2 {[%clk 0:02:37]}  a6 {[%clk 0:02:56]} 8. a4 {[%clk 0:02:35]}  Nbd7 {[%clk 0:02:51]} 9. a5 {[%clk 0:02:34]}  c5 {[%clk 0:02:49]} 10. Rd1 {[%clk 0:02:31]}  cxd4 {[%clk 0:02:41]} 11. Rxd4 {[%clk 0:02:30]}  Qc7 {[%clk 0:02:32]} 12. Rxc4 {[%clk 0:02:29]}  Qb8 {[%clk 0:02:31]} 13. Nc3 {[%clk 0:02:06]}  Ne5 {[%clk 0:02:30]} 14. Nxe5 {[%clk 0:02:03]}  Qxe5 {[%clk 0:02:31]} 15. Bf4 {[%clk 0:02:02]}  Qh5 {[%clk 0:02:27]} 16. Rc7 {[%clk 0:01:40]}  Bd8 {[%clk 0:02:06]} 17. Rxb7 {[%clk 0:01:28]}  Bxb7 {[%clk 0:01:56]} 18. Bxb7 {[%clk 0:01:27]}  Bxa5 {[%clk 0:01:56]} 19. Bf3 {[%clk 0:01:16]}  Qc5 {[%clk 0:01:49]} 20. Be3 {[%clk 0:01:12]}  Qc7 {[%clk 0:01:47]} 21. Bxa8 {[%clk 0:01:09]}  Rxa8 {[%clk 0:01:47]} 22. Qd3 {[%clk 0:00:55]}  Bxc3 {[%clk 0:01:37]} 23. Qxc3 {[%clk 0:00:49]}  Qxc3 {[%clk 0:01:34]} 24. bxc3 {[%clk 0:00:49]}  Nd5 {[%clk 0:01:35]} 25. Bd4 {[%clk 0:00:46]}  f6 {[%clk 0:01:33]} 26. c4 {[%clk 0:00:46]}  Nb4 {[%clk 0:01:30]} 27. Ra4 {[%clk 0:00:45]}  Nc6 {[%clk 0:01:29]} 28. Bb6 {[%clk 0:00:44]}  Kf7 {[%clk 0:01:28]} 29. c5 {[%clk 0:00:39]}  Ke7 {[%clk 0:01:28]} 30. Rg4 {[%clk 0:00:35]}  g6 {[%clk 0:01:21]} 31. Rh4 {[%clk 0:00:35]}  h5 {[%clk 0:01:21]} 32. g4 {[%clk 0:00:34]}  Rh8 {[%clk 0:01:14]} 33. gxh5 {[%clk 0:00:33]}  gxh5 {[%clk 0:01:07]} 34. Ra4 {[%clk 0:00:32]}  Nb8 {[%clk 0:01:01]} 35. Bc7 {[%clk 0:00:29]}  Kd7 {[%clk 0:00:53]} 36. Bxb8 {[%clk 0:00:29]}  Rxb8 {[%clk 0:00:54]} 37. Rxa6 {[%clk 0:00:29]}  Rb1+ {[%clk 0:00:54]} 38. Kg2 {[%clk 0:00:28]}  Rc1 {[%clk 0:00:55]} 39. Ra7+ {[%clk 0:00:26]}  Kc6 {[%clk 0:00:54]} 40. Re7 {[%clk 0:00:25]}  Kd5 {[%clk 0:00:51]} 41. Rh7 {[%clk 0:00:23]}  Rxc5 {[%clk 0:00:47]} 42. Rxh5+ {[%clk 0:00:23]}  f5 {[%clk 0:00:48]} 43. Kf3 {[%clk 0:00:20]}  Ke5 {[%clk 0:00:48]} 44. Rh6 {[%clk 0:00:19]}  Rc4 {[%clk 0:00:46]} 45. h4 {[%clk 0:00:18]}  Rf4+ {[%clk 0:00:44]} 46. Ke3 {[%clk 0:00:16]}  Re4+ {[%clk 0:00:44]} 47. Kd3 {[%clk 0:00:16]}  Kf4 {[%clk 0:00:41]} 48. f3 {[%clk 0:00:13]}  Re3+ {[%clk 0:00:39]} 49. Kd2 {[%clk 0:00:13]}  Re5 {[%clk 0:00:40]} 50. Rh8 {[%clk 0:00:12]}  Kg3 {[%clk 0:00:36]} 51. h5 {[%clk 0:00:12]}  Kf2 {[%clk 0:00:37]} 52. e3 {[%clk 0:00:05]}  Rxe3 {[%clk 0:00:35]} 53. h6 {[%clk 0:00:06]}  Rxf3 {[%clk 0:00:25]} 54. Re8 {[%clk 0:00:05]}  Rh3 {[%clk 0:00:20]} 55. Rxe6 {[%clk 0:00:05]}  f4 {[%clk 0:00:21]} 56. Rf6 {[%clk 0:00:04]}  f3 {[%clk 0:00:21]} 57. Kd3 {[%clk 0:00:05]}  Kf1 {[%clk 0:00:18]} 58. Kd2 {[%clk 0:00:02]}  f2 {[%clk 0:00:19]} 59. Kd1 {[%clk 0:00:03]}  Kg1 {[%clk 0:00:18]} 60. Ke2 {[%clk 0:00:00]}  Rxh6 {[%clk 0:00:14]} 0-1


[Site "https://www.chess.com"]

[Event "Titled Tuesday Blitz July 18 Late 2023"]
[White "UgarteCesar"]
[Black "Topalov, Aleksandar"]
[BlackFideId "925659"]
[WhiteElo "2249"]
[BlackElo "2375"]
[Result "0-1"]
[Round "8"]
[TimeControl "180+2"]
[Date "2023.07.18"]
[WhiteClock "0:01:05"]
[BlackClock "0:02:19"]
[Board "113"]

1. d4 {[%clk 0:02:59]}  Nf6 {[%clk 0:02:59]} 2. Bg5 {[%clk 0:02:59]}  g6 {[%clk 0:02:59]} 3. Bxf6 {[%clk 0:02:59]}  exf6 {[%clk 0:02:59]} 4. g3 {[%clk 0:02:59]}  f5 {[%clk 0:03:00]} 5. e3 {[%clk 0:02:59]}  h5 {[%clk 0:03:00]} 6. h4 {[%clk 0:02:59]}  Bh6 {[%clk 0:03:00]} 7. Bg2 {[%clk 0:02:57]}  d6 {[%clk 0:03:00]} 8. Ne2 {[%clk 0:02:57]}  Nd7 {[%clk 0:03:00]} 9. Nd2 {[%clk 0:02:56]}  Nf6 {[%clk 0:03:00]} 10. O-O {[%clk 0:02:56]}  Ng4 {[%clk 0:03:01]} 11. Re1 {[%clk 0:02:31]}  O-O {[%clk 0:03:00]} 12. Nf1 {[%clk 0:02:31]}  g5 {[%clk 0:02:57]} 13. hxg5 {[%clk 0:02:28]}  Qxg5 {[%clk 0:02:57]} 14. Nh2 {[%clk 0:02:03]}  h4 {[%clk 0:02:56]} 15. Nf3 {[%clk 0:02:03]}  hxg3 {[%clk 0:02:38]} 16. Nxg5 {[%clk 0:01:56]}  gxf2+ {[%clk 0:02:38]} 17. Kf1 {[%clk 0:01:51]}  Nxe3+ {[%clk 0:02:36]} 18. Kxf2 {[%clk 0:01:51]}  Nxd1+ {[%clk 0:02:36]} 19. Raxd1 {[%clk 0:01:50]}  Bxg5 {[%clk 0:02:36]} 20. Rg1 {[%clk 0:01:48]}  f6 {[%clk 0:02:32]} 21. Bd5+ {[%clk 0:01:44]}  Kg7 {[%clk 0:02:32]} 22. Nf4 {[%clk 0:01:43]}  c6 {[%clk 0:02:30]} 23. Be6 {[%clk 0:01:39]}  Re8 {[%clk 0:02:26]} 24. Rde1 {[%clk 0:01:29]}  Bxe6 {[%clk 0:02:26]} 25. Nxe6+ {[%clk 0:01:28]}  Kg6 {[%clk 0:02:26]} 26. Nf4+ {[%clk 0:01:28]}  Kf7 {[%clk 0:02:25]} 27. Nd3 {[%clk 0:01:09]}  Rxe1 {[%clk 0:02:19]} 28. Rxe1 {[%clk 0:01:05]}  Bh4+ {[%clk 0:02:19]} 0-1


[Site "https://www.chess.com"]

[Event "Titled Tuesday Blitz July 18 Late 2023"]
[White "kripri"]
[Black "Osmonbekov, Talaibek"]
[BlackFideId "2017253"]
[WhiteElo "2318"]
[BlackElo "2189"]
[Result "0-1"]
[Round "8"]
[TimeControl "180+2"]
[Date "2023.07.18"]
[WhiteClock "0:01:41"]
[BlackClock "0:02:09"]
[Board "116"]

1. e4 {[%clk 0:03:00]}  c5 {[%clk 0:03:00]} 2. Nf3 {[%clk 0:03:00]}  d6 {[%clk 0:03:00]} 3. d4 {[%clk 0:03:01]}  cxd4 {[%clk 0:03:00]} 4. Nxd4 {[%clk 0:03:01]}  Nf6 {[%clk 0:03:01]} 5. Nc3 {[%clk 0:03:02]}  g6 {[%clk 0:03:02]} 6. Be3 {[%clk 0:03:00]}  Bg7 {[%clk 0:03:02]} 7. f3 {[%clk 0:03:01]}  O-O {[%clk 0:03:02]} 8. Qd2 {[%clk 0:03:02]}  Nc6 {[%clk 0:03:02]} 9. O-O-O {[%clk 0:03:02]}  d5 {[%clk 0:03:03]} 10. Nxc6 {[%clk 0:02:58]}  bxc6 {[%clk 0:03:02]} 11. Bh6 {[%clk 0:02:59]}  Be6 {[%clk 0:02:46]} 12. e5 {[%clk 0:02:57]}  Nd7 {[%clk 0:02:40]} 13. Bxg7 {[%clk 0:02:55]}  Kxg7 {[%clk 0:02:40]} 14. h4 {[%clk 0:02:56]}  h5 {[%clk 0:02:40]} 15. f4 {[%clk 0:02:53]}  Rb8 {[%clk 0:02:33]} 16. Be2 {[%clk 0:02:35]}  Nc5 {[%clk 0:02:31]} 17. g4 {[%clk 0:02:30]}  hxg4 {[%clk 0:02:30]} 18. h5 {[%clk 0:02:28]}  Rh8 {[%clk 0:02:19]} 19. hxg6 {[%clk 0:02:25]}  fxg6 {[%clk 0:02:17]} 20. Qd4 {[%clk 0:02:12]}  Qb6 {[%clk 0:02:10]} 21. b3 {[%clk 0:02:02]}  Rxh1 {[%clk 0:02:09]} 22. Rxh1 {[%clk 0:01:57]}  Nxb3+ {[%clk 0:02:09]} 23. axb3 {[%clk 0:01:41]}  Qxd4 {[%clk 0:02:09]} 0-1


[Site "https://www.chess.com"]

[Event "Titled Tuesday Blitz July 18 Late 2023"]
[White "Womacka, Mathias"]
[Black "rikchessmx"]
[WhiteFideId "4611390"]
[WhiteElo "2529"]
[BlackElo "2256"]
[Result "1-0"]
[Round "8"]
[TimeControl "180+2"]
[Date "2023.07.18"]
[WhiteClock "0:00:50"]
[BlackClock "0:00:56"]
[Board "118"]

1. e4 {[%clk 0:03:00]}  c5 {[%clk 0:02:40]} 2. Nf3 {[%clk 0:02:59]}  e6 {[%clk 0:02:41]} 3. d4 {[%clk 0:02:59]}  cxd4 {[%clk 0:02:42]} 4. Nxd4 {[%clk 0:02:58]}  a6 {[%clk 0:02:42]} 5. Bd3 {[%clk 0:02:57]}  Qc7 {[%clk 0:02:43]} 6. Qe2 {[%clk 0:02:56]}  Nf6 {[%clk 0:02:40]} 7. O-O {[%clk 0:02:55]}  h5 {[%clk 0:02:39]} 8. h3 {[%clk 0:02:52]}  Bc5 {[%clk 0:02:39]} 9. Nb3 {[%clk 0:02:48]}  Ba7 {[%clk 0:02:37]} 10. e5 {[%clk 0:02:45]}  Nd5 {[%clk 0:02:36]} 11. c4 {[%clk 0:02:40]}  Nb4 {[%clk 0:02:35]} 12. Bf4 {[%clk 0:02:38]}  N8c6 {[%clk 0:02:34]} 13. Re1 {[%clk 0:02:32]}  Nxd3 {[%clk 0:02:30]} 14. Qxd3 {[%clk 0:02:31]}  Bb8 {[%clk 0:02:21]} 15. Nc3 {[%clk 0:02:25]}  g5 {[%clk 0:02:15]} 16. Bh2 {[%clk 0:02:20]}  g4 {[%clk 0:02:15]} 17. Ne4 {[%clk 0:02:15]}  gxh3 {[%clk 0:02:01]} 18. Qxh3 {[%clk 0:02:04]}  Qd8 {[%clk 0:01:46]} 19. Nf6+ {[%clk 0:01:59]}  Kf8 {[%clk 0:01:44]} 20. Qf3 {[%clk 0:01:26]}  h4 {[%clk 0:01:37]} 21. Rad1 {[%clk 0:01:24]}  h3 {[%clk 0:01:28]} 22. gxh3 {[%clk 0:01:19]}  Ne7 {[%clk 0:01:15]} 23. Nc5 {[%clk 0:01:15]}  d5 {[%clk 0:01:04]} 24. exd6 {[%clk 0:01:12]}  Nf5 {[%clk 0:01:03]} 25. d7 {[%clk 0:01:02]}  Bxh2+ {[%clk 0:01:02]} 26. Kxh2 {[%clk 0:01:00]}  Qxf6 {[%clk 0:00:59]} 27. d8=Q+ {[%clk 0:00:57]}  Kg7 {[%clk 0:00:56]} 28. Qxf6+ {[%clk 0:00:56]}  Kxf6 {[%clk 0:00:56]} 29. Ne4+ {[%clk 0:00:51]}  Ke7 {[%clk 0:00:56]} 30. Qa3+ {[%clk 0:00:50]}  Ke8 {[%clk 0:00:56]} 31. Nf6# {[%clk 0:00:50]} 1-0


[Site "https://www.chess.com"]